[Event "Titled Tuesday Blitz May 10 Late 2022"]
[White "Stoleriu, George"]
[Black "Adla, Diego"]
[WhiteFideId "1227505"]
[BlackFideId "100072"]
[WhiteElo "2194"]
[BlackElo "2377"]
[Result "0-1"]
[Round "01"]
[TimeControl "180+1"]
[Date "2022.05.11"]
[WhiteClock "0:00:10"]
[BlackClock "0:00:06"]

1. e4 {[%clk 0:03:00]}  c6 {[%clk 0:02:53]} 2. Nf3 {[%clk 0:02:54]}  d5 {[%clk 0:02:52]} 3. exd5 {[%clk 0:02:55]}  cxd5 {[%clk 0:02:52]} 4. Ne5 {[%clk 0:02:56]}  Nc6 {[%clk 0:02:49]} 5. d4 {[%clk 0:02:56]}  Nf6 {[%clk 0:02:45]} 6. Bb5 {[%clk 0:02:41]}  Bd7 {[%clk 0:02:45]} 7. Nxd7 {[%clk 0:02:41]}  Qxd7 {[%clk 0:02:45]} 8. c3 {[%clk 0:02:42]}  e6 {[%clk 0:02:45]} 9. O-O {[%clk 0:02:43]}  Bd6 {[%clk 0:02:46]} 10. Nd2 {[%clk 0:02:43]}  Qc7 {[%clk 0:02:46]} 11. Nf3 {[%clk 0:02:44]}  Ne4 {[%clk 0:02:45]} 12. Qe2 {[%clk 0:02:40]}  O-O {[%clk 0:02:44]} 13. a4 {[%clk 0:02:37]}  Rae8 {[%clk 0:02:41]} 14. Bd3 {[%clk 0:02:35]}  f5 {[%clk 0:02:40]} 15. h3 {[%clk 0:02:33]}  h6 {[%clk 0:02:39]} 16. Bd2 {[%clk 0:02:26]}  g5 {[%clk 0:02:38]} 17. b4 {[%clk 0:02:25]}  Qg7 {[%clk 0:02:35]} 18. b5 {[%clk 0:02:19]}  Ne7 {[%clk 0:02:31]} 19. c4 {[%clk 0:02:15]}  Ng6 {[%clk 0:02:27]} 20. Rfe1 {[%clk 0:02:07]}  g4 {[%clk 0:02:13]} 21. hxg4 {[%clk 0:01:41]}  fxg4 {[%clk 0:02:12]} 22. Bxe4 {[%clk 0:01:42]}  dxe4 {[%clk 0:02:12]} 23. Ne5 {[%clk 0:01:37]}  Bxe5 {[%clk 0:02:01]} 24. dxe5 {[%clk 0:01:38]}  Nh4 {[%clk 0:02:02]} 25. Kh1 {[%clk 0:01:04]}  Rf5 {[%clk 0:01:05]} 26. Bf4 {[%clk 0:00:25]}  Rxf4 {[%clk 0:00:55]} 27. g3 {[%clk 0:00:24]}  Rf3 {[%clk 0:00:22]} 28. gxh4 {[%clk 0:00:23]}  Ref8 {[%clk 0:00:17]} 29. Rf1 {[%clk 0:00:16]}  Qe7 {[%clk 0:00:15]} 30. Kg2 {[%clk 0:00:10]}  Qxh4 {[%clk 0:00:15]} 31. Ra2 {[%clk 0:00:10]}  Qh3+ {[%clk 0:00:14]} 32. Kg1 {[%clk 0:00:10]}  g3 {[%clk 0:00:11]} 33. Qxe4 {[%clk 0:00:10]}  Qh2# {[%clk 0:00:06]} 0-1


[Site "https://www.chess.com"]

[Event "Titled Tuesday Blitz May 10 Late 2022"]
[White "Svane, Frederik"]
[Black "Batsiashvili, Nino"]
[WhiteFideId "12923044"]
[BlackFideId "13602993"]
[WhiteElo "2459"]
[BlackElo "2193"]
[Result "1-0"]
[Round "01"]
[TimeControl "180+1"]
[Date "2022.05.10"]
[WhiteClock "0:00:05"]
[BlackClock "0:00:01"]

1. e4 {[%clk 0:03:00]}  c6 {[%clk 0:02:58]} 2. d4 {[%clk 0:03:00]}  d5 {[%clk 0:02:59]} 3. exd5 {[%clk 0:03:01]}  cxd5 {[%clk 0:02:59]} 4. Nf3 {[%clk 0:03:02]}  Bg4 {[%clk 0:02:56]} 5. c3 {[%clk 0:03:02]}  Nf6 {[%clk 0:02:55]} 6. h3 {[%clk 0:03:00]}  Bh5 {[%clk 0:02:51]} 7. Qb3 {[%clk 0:03:00]}  Qc8 {[%clk 0:02:47]} 8. Ne5 {[%clk 0:02:51]}  e6 {[%clk 0:02:45]} 9. Bb5+ {[%clk 0:02:45]}  Nfd7 {[%clk 0:02:36]} 10. Bf4 {[%clk 0:02:42]}  a6 {[%clk 0:02:34]} 11. Bd3 {[%clk 0:02:40]}  Nc6 {[%clk 0:02:30]} 12. Nxc6 {[%clk 0:02:35]}  bxc6 {[%clk 0:02:27]} 13. O-O {[%clk 0:02:35]}  Be7 {[%clk 0:02:24]} 14. Nd2 {[%clk 0:02:34]}  c5 {[%clk 0:02:23]} 15. Qc2 {[%clk 0:02:19]}  c4 {[%clk 0:02:22]} 16. Nxc4 {[%clk 0:02:17]}  dxc4 {[%clk 0:02:21]} 17. Be4 {[%clk 0:02:18]}  Bg6 {[%clk 0:02:17]} 18. Bxg6 {[%clk 0:02:17]}  hxg6 {[%clk 0:02:18]} 19. Rfe1 {[%clk 0:02:17]}  O-O {[%clk 0:02:18]} 20. d5 {[%clk 0:02:17]}  e5 {[%clk 0:02:12]} 21. Bxe5 {[%clk 0:02:18]}  Nxe5 {[%clk 0:02:13]} 22. Rxe5 {[%clk 0:02:18]}  Bd6 {[%clk 0:02:13]} 23. Re4 {[%clk 0:02:19]}  Qf5 {[%clk 0:02:09]} 24. Qe2 {[%clk 0:02:18]}  Qxd5 {[%clk 0:02:05]} 25. Rd1 {[%clk 0:02:18]}  Qc6 {[%clk 0:01:57]} 26. Rxc4 {[%clk 0:02:18]}  Qb6 {[%clk 0:01:54]} 27. Qf3 {[%clk 0:02:15]}  Rac8 {[%clk 0:01:47]} 28. Rcd4 {[%clk 0:01:56]}  Bc5 {[%clk 0:01:45]} 29. R4d2 {[%clk 0:01:57]}  Rcd8 {[%clk 0:01:41]} 30. b4 {[%clk 0:01:56]}  Rxd2 {[%clk 0:01:38]} 31. Rxd2 {[%clk 0:01:57]}  Be7 {[%clk 0:01:38]} 32. a3 {[%clk 0:01:55]}  Bf6 {[%clk 0:01:37]} 33. c4 {[%clk 0:01:54]}  Qe6 {[%clk 0:01:33]} 34. Qe2 {[%clk 0:01:49]}  Qf5 {[%clk 0:01:28]} 35. Qd3 {[%clk 0:01:49]}  Qe5 {[%clk 0:01:24]} 36. Re2 {[%clk 0:01:48]}  Qa1+ {[%clk 0:01:23]} 37. Kh2 {[%clk 0:01:49]}  Be5+ {[%clk 0:01:23]} 38. g3 {[%clk 0:01:48]}  Bd4 {[%clk 0:01:20]} 39. Kg2 {[%clk 0:01:46]}  Rd8 {[%clk 0:01:19]} 40. c5 {[%clk 0:01:46]}  Bf6 {[%clk 0:01:18]} 41. Qxa6 {[%clk 0:01:43]}  Rd1 {[%clk 0:01:17]} 42. Qa8+ {[%clk 0:01:31]}  Kh7 {[%clk 0:01:16]} 43. Qf3 {[%clk 0:01:32]}  Qd4 {[%clk 0:00:56]} 44. Qe4 {[%clk 0:01:26]}  Qc3 {[%clk 0:00:52]} 45. Qc2 {[%clk 0:01:24]}  Qd4 {[%clk 0:00:48]} 46. c6 {[%clk 0:01:22]}  Qd5+ {[%clk 0:00:22]} 47. Qe4 {[%clk 0:01:22]}  Qd6 {[%clk 0:00:20]} 48. Rc2 {[%clk 0:01:18]}  Ra1 {[%clk 0:00:19]} 49. Qf3 {[%clk 0:01:06]}  Bd8 {[%clk 0:00:17]} 50. Rc4 {[%clk 0:00:56]}  Bc7 {[%clk 0:00:12]} 51. Qxf7 {[%clk 0:00:49]}  Bd8 {[%clk 0:00:04]} 52. Qf3 {[%clk 0:00:40]}  Rb1 {[%clk 0:00:01]} 53. c7 {[%clk 0:00:39]}  Bxc7 {[%clk 0:00:01]} 54. Rh4+ {[%clk 0:00:38]}  Kg8 {[%clk 0:00:01]} 55. Qa8+ {[%clk 0:00:35]}  Bd8 {[%clk 0:00:01]} 56. Re4 {[%clk 0:00:31]}  Qd1 {[%clk 0:00:02]} 57. Re1 {[%clk 0:00:04]}  Qxe1 {[%clk 0:00:01]} 58. Qxd8+ {[%clk 0:00:05]} 1-0


[Site "https://www.chess.com"]

[Event "Titled Tuesday Blitz May 10 Late 2022"]
[White "Szabo, Marton Mihaly"]
[Black "Federzoni, Enzo"]
[WhiteFideId "787086"]
[BlackFideId "2173301"]
[WhiteElo "1984"]
[BlackElo "1956"]
[Result "1-0"]
[Round "01"]
[TimeControl "180+1"]
[Date "2022.05.11"]
[WhiteClock "0:00:09"]
[BlackClock "0:00:59"]

1. e4 {[%clk 0:02:54]}  c5 {[%clk 0:02:55]} 2. c4 {[%clk 0:02:54]}  Nc6 {[%clk 0:02:54]} 3. Nc3 {[%clk 0:02:54]}  g6 {[%clk 0:02:54]} 4. g3 {[%clk 0:02:54]}  Bg7 {[%clk 0:02:53]} 5. Bg2 {[%clk 0:02:55]}  e6 {[%clk 0:02:54]} 6. Nge2 {[%clk 0:02:55]}  Nge7 {[%clk 0:02:54]} 7. O-O {[%clk 0:02:56]}  O-O {[%clk 0:02:54]} 8. d3 {[%clk 0:02:56]}  b6 {[%clk 0:02:54]} 9. Rb1 {[%clk 0:02:57]}  Bb7 {[%clk 0:02:53]} 10. a3 {[%clk 0:02:57]}  Nd4 {[%clk 0:02:47]} 11. b4 {[%clk 0:02:57]}  d6 {[%clk 0:02:44]} 12. Be3 {[%clk 0:02:57]}  Qd7 {[%clk 0:02:39]} 13. Qd2 {[%clk 0:02:57]}  f5 {[%clk 0:02:36]} 14. Bh6 {[%clk 0:02:55]}  fxe4 {[%clk 0:02:31]} 15. dxe4 {[%clk 0:02:45]}  e5 {[%clk 0:02:28]} 16. Bxg7 {[%clk 0:02:43]}  Kxg7 {[%clk 0:02:28]} 17. bxc5 {[%clk 0:02:39]}  dxc5 {[%clk 0:02:26]} 18. Nd5 {[%clk 0:02:37]}  Nxd5 {[%clk 0:02:18]} 19. cxd5 {[%clk 0:02:30]}  Ba6 {[%clk 0:02:14]} 20. Nxd4 {[%clk 0:02:29]}  exd4 {[%clk 0:02:14]} 21. Rfe1 {[%clk 0:02:29]}  Rae8 {[%clk 0:02:10]} 22. e5 {[%clk 0:02:17]}  Bb7 {[%clk 0:02:06]} 23. d6 {[%clk 0:02:17]}  Bxg2 {[%clk 0:02:03]} 24. Kxg2 {[%clk 0:02:18]}  Re6 {[%clk 0:02:03]} 25. f4 {[%clk 0:02:17]}  Rfe8 {[%clk 0:02:03]} 26. h4 {[%clk 0:01:54]}  h5 {[%clk 0:02:00]} 27. Kh2 {[%clk 0:01:40]}  b5 {[%clk 0:01:56]} 28. Rec1 {[%clk 0:01:34]}  Rc8 {[%clk 0:01:54]} 29. Qd3 {[%clk 0:01:10]}  a6 {[%clk 0:01:52]} 30. a4 {[%clk 0:01:10]}  Qc6 {[%clk 0:01:33]} 31. axb5 {[%clk 0:01:05]}  axb5 {[%clk 0:01:33]} 32. Qxb5 {[%clk 0:00:59]}  Qf3 {[%clk 0:01:24]} 33. Qb7+ {[%clk 0:00:57]}  Qxb7 {[%clk 0:01:24]} 34. Rxb7+ {[%clk 0:00:57]}  Kh6 {[%clk 0:01:24]} 35. d7 {[%clk 0:00:51]}  Rd8 {[%clk 0:01:24]} 36. Rxc5 {[%clk 0:00:50]}  Re7 {[%clk 0:01:25]} 37. Rd5 {[%clk 0:00:50]}  d3 {[%clk 0:01:25]} 38. Rxd3 {[%clk 0:00:49]}  Kg7 {[%clk 0:01:25]} 39. Rd6 {[%clk 0:00:49]}  Kh6 {[%clk 0:01:25]} 40. Kg2 {[%clk 0:00:46]}  Rf7 {[%clk 0:01:24]} 41. Kf3 {[%clk 0:00:45]}  Rdxd7 {[%clk 0:01:24]} 42. Rbxd7 {[%clk 0:00:44]}  Rxf4+ {[%clk 0:01:22]} 43. Ke3 {[%clk 0:00:33]}  Re4+ {[%clk 0:01:21]} 44. Kd3 {[%clk 0:00:30]}  Re3+ {[%clk 0:01:21]} 45. Kc4 {[%clk 0:00:29]}  Rc3+ {[%clk 0:01:22]} 46. Kd5 {[%clk 0:00:27]}  Rc5+ {[%clk 0:01:22]} 47. Ke6 {[%clk 0:00:17]}  Rxe5+ {[%clk 0:01:22]} 48. Kf7 {[%clk 0:00:17]}  Rf5+ {[%clk 0:01:18]} 49. Rf6 {[%clk 0:00:14]}  Rf4 {[%clk 0:00:58]} 50. Rxf4 {[%clk 0:00:10]}  g5 {[%clk 0:00:59]} 51. Rf6+ {[%clk 0:00:11]}  Kh7 {[%clk 0:00:59]} 52. Kf8+ {[%clk 0:00:08]}  Kh8 {[%clk 0:00:59]} 53. Rh6# {[%clk 0:00:09]} 1-0


[Site "https://www.chess.com"]

[Event "Titled Tuesday Blitz May 10 Late 2022"]
[White "Tisaj, Domen"]
[Black "Akrakan"]
[WhiteFideId "14628708"]
[WhiteElo "2326"]
[BlackElo "2125"]
[Result "1-0"]
[Round "01"]
[TimeControl "180+1"]
[Date "2022.05.11"]
[WhiteClock "0:00:23"]
[BlackClock "0:00:43"]

1. d4 {[%clk 0:02:59]}  d5 {[%clk 0:02:59]} 2. c4 {[%clk 0:02:59]}  e6 {[%clk 0:02:59]} 3. Nc3 {[%clk 0:02:59]}  Nf6 {[%clk 0:02:59]} 4. cxd5 {[%clk 0:03:00]}  exd5 {[%clk 0:02:59]} 5. Bg5 {[%clk 0:03:00]}  Be7 {[%clk 0:02:59]} 6. e3 {[%clk 0:03:00]}  c6 {[%clk 0:02:59]} 7. Bd3 {[%clk 0:03:00]}  Ne4 {[%clk 0:02:59]} 8. Bxe7 {[%clk 0:02:56]}  Qxe7 {[%clk 0:03:00]} 9. Qc2 {[%clk 0:02:56]}  Nxc3 {[%clk 0:02:53]} 10. bxc3 {[%clk 0:02:56]}  h6 {[%clk 0:02:54]} 11. Ne2 {[%clk 0:02:50]}  O-O {[%clk 0:02:54]} 12. O-O {[%clk 0:02:50]}  Bg4 {[%clk 0:02:53]} 13. Ng3 {[%clk 0:02:50]}  Nd7 {[%clk 0:02:52]} 14. c4 {[%clk 0:02:50]}  Nf6 {[%clk 0:02:52]} 15. Rab1 {[%clk 0:02:50]}  b6 {[%clk 0:02:46]} 16. cxd5 {[%clk 0:02:49]}  cxd5 {[%clk 0:02:44]} 17. h3 {[%clk 0:02:49]}  Be6 {[%clk 0:02:43]} 18. Rfc1 {[%clk 0:02:49]}  Rac8 {[%clk 0:02:43]} 19. Qd2 {[%clk 0:02:50]}  Qd7 {[%clk 0:02:38]} 20. Qb4 {[%clk 0:02:46]}  Rxc1+ {[%clk 0:02:30]} 21. Rxc1 {[%clk 0:02:47]}  Rc8 {[%clk 0:02:31]} 22. Rb1 {[%clk 0:02:38]}  Qc7 {[%clk 0:02:25]} 23. Ba6 {[%clk 0:02:30]}  Rd8 {[%clk 0:02:21]} 24. a4 {[%clk 0:02:30]}  g6 {[%clk 0:02:19]} 25. Qb2 {[%clk 0:02:23]}  Ne4 {[%clk 0:02:05]} 26. Rc1 {[%clk 0:02:22]}  Qe7 {[%clk 0:02:01]} 27. Nxe4 {[%clk 0:02:19]}  dxe4 {[%clk 0:02:01]} 28. Bc4 {[%clk 0:02:04]}  Rc8 {[%clk 0:01:51]} 29. Bxe6 {[%clk 0:01:37]}  Qxe6 {[%clk 0:01:50]} 30. Rc3 {[%clk 0:01:23]}  Rxc3 {[%clk 0:01:37]} 31. Qxc3 {[%clk 0:01:24]}  Qd5 {[%clk 0:01:37]} 32. Qc7 {[%clk 0:01:21]}  Qa5 {[%clk 0:01:32]} 33. Kh2 {[%clk 0:01:11]}  Qxa4 {[%clk 0:01:27]} 34. d5 {[%clk 0:01:12]}  Qa1 {[%clk 0:01:07]} 35. Qd8+ {[%clk 0:00:32]}  Kg7 {[%clk 0:01:07]} 36. Qe7 {[%clk 0:00:32]}  Qe1 {[%clk 0:00:53]} 37. Qe5+ {[%clk 0:00:20]}  Kf8 {[%clk 0:00:51]} 38. d6 {[%clk 0:00:20]}  Kg8 {[%clk 0:00:43]} 39. d7 {[%clk 0:00:20]}  Qd2 {[%clk 0:00:40]} 40. Qe8+ {[%clk 0:00:18]}  Kg7 {[%clk 0:00:41]} 41. d8=Q {[%clk 0:00:19]}  Qxd8 {[%clk 0:00:41]} 42. Qxd8 {[%clk 0:00:20]}  a5 {[%clk 0:00:41]} 43. Qxb6 {[%clk 0:00:20]}  a4 {[%clk 0:00:42]} 44. Qd4+ {[%clk 0:00:21]}  Kf8 {[%clk 0:00:41]} 45. Qxa4 {[%clk 0:00:22]}  Ke7 {[%clk 0:00:42]} 46. Qxe4+ {[%clk 0:00:22]}  Kf6 {[%clk 0:00:43]} 47. Qf4+ {[%clk 0:00:22]}  Kg7 {[%clk 0:00:43]} 48. Qe5+ {[%clk 0:00:22]}  Kh7 {[%clk 0:00:42]} 49. Qf6 {[%clk 0:00:22]}  Kg8 {[%clk 0:00:43]} 50. h4 {[%clk 0:00:23]} 1-0


[Site "https://www.chess.com"]

[Event "Titled Tuesday Blitz May 10 Late 2022"]
[White "Urbina Perez, Juan Antonio"]
[Black "Clarke, Brandon G I"]
[WhiteFideId "2217368"]
[BlackFideId "400319"]
[WhiteElo "2192"]
[BlackElo "2414"]
[Result "1/2-1/2"]
[Round "01"]
[TimeControl "180+1"]
[Date "2022.05.10"]
[WhiteClock "0:00:26"]
[BlackClock "0:00:41"]

1. e4 {[%clk 0:02:58]}  c5 {[%clk 0:02:58]} 2. Nf3 {[%clk 0:02:51]}  d6 {[%clk 0:02:58]} 3. Bb5+ {[%clk 0:02:51]}  Nd7 {[%clk 0:02:58]} 4. d4 {[%clk 0:02:51]}  cxd4 {[%clk 0:02:59]} 5. Qxd4 {[%clk 0:02:51]}  a6 {[%clk 0:02:59]} 6. Bxd7+ {[%clk 0:02:51]}  Bxd7 {[%clk 0:03:00]} 7. Nc3 {[%clk 0:02:51]}  e5 {[%clk 0:03:00]} 8. Qd3 {[%clk 0:02:52]}  Rc8 {[%clk 0:03:00]} 9. O-O {[%clk 0:02:51]}  h6 {[%clk 0:02:54]} 10. Rd1 {[%clk 0:02:50]}  Nf6 {[%clk 0:02:54]} 11. a4 {[%clk 0:02:51]}  Be7 {[%clk 0:02:54]} 12. Nd2 {[%clk 0:02:51]}  Qc7 {[%clk 0:02:54]} 13. Nf1 {[%clk 0:02:51]}  Bg4 {[%clk 0:02:54]} 14. f3 {[%clk 0:02:49]}  Be6 {[%clk 0:02:54]} 15. Ne3 {[%clk 0:02:49]}  O-O {[%clk 0:02:54]} 16. Bd2 {[%clk 0:02:50]}  Rfd8 {[%clk 0:02:55]} 17. Rac1 {[%clk 0:02:49]}  Qc5 {[%clk 0:02:28]} 18. Kh1 {[%clk 0:02:36]}  d5 {[%clk 0:02:24]} 19. Ncxd5 {[%clk 0:02:33]}  Nxd5 {[%clk 0:02:25]} 20. exd5 {[%clk 0:02:12]}  Bxd5 {[%clk 0:02:25]} 21. Nxd5 {[%clk 0:02:07]}  Rxd5 {[%clk 0:02:26]} 22. Qe2 {[%clk 0:01:55]}  Rcd8 {[%clk 0:02:23]} 23. Bc3 {[%clk 0:01:51]}  Bg5 {[%clk 0:02:12]} 24. Rxd5 {[%clk 0:01:47]}  Qxd5 {[%clk 0:02:13]} 25. Re1 {[%clk 0:01:42]}  f6 {[%clk 0:01:59]} 26. g3 {[%clk 0:01:38]}  h5 {[%clk 0:02:00]} 27. Kg2 {[%clk 0:01:35]}  h4 {[%clk 0:02:00]} 28. Qe4 {[%clk 0:01:32]}  Qxe4 {[%clk 0:01:35]} 29. Rxe4 {[%clk 0:01:33]}  hxg3 {[%clk 0:01:31]} 30. hxg3 {[%clk 0:01:34]}  Kf7 {[%clk 0:01:26]} 31. Rb4 {[%clk 0:01:27]}  Rd7 {[%clk 0:01:27]} 32. Kf2 {[%clk 0:01:27]}  Ke6 {[%clk 0:01:16]} 33. Ke2 {[%clk 0:01:20]}  Kd5 {[%clk 0:01:15]} 34. f4 {[%clk 0:01:15]}  exf4 {[%clk 0:01:15]} 35. gxf4 {[%clk 0:01:16]}  Bh6 {[%clk 0:01:14]} 36. Rd4+ {[%clk 0:01:15]}  Kc6 {[%clk 0:01:14]} 37. Rxd7 {[%clk 0:01:15]}  Kxd7 {[%clk 0:01:15]} 38. Kf3 {[%clk 0:01:16]}  f5 {[%clk 0:01:14]} 39. Bd4 {[%clk 0:01:13]}  Kc6 {[%clk 0:01:13]} 40. c4 {[%clk 0:01:12]}  g6 {[%clk 0:01:10]} 41. b4 {[%clk 0:01:00]}  b5 {[%clk 0:01:05]} 42. cxb5+ {[%clk 0:01:00]}  axb5 {[%clk 0:01:06]} 43. a5 {[%clk 0:00:57]}  Bf8 {[%clk 0:01:03]} 44. Bc3 {[%clk 0:00:57]}  Bd6 {[%clk 0:01:01]} 45. Ke3 {[%clk 0:00:56]}  Kd5 {[%clk 0:01:00]} 46. Bd2 {[%clk 0:00:53]}  Bb8 {[%clk 0:00:57]} 47. Kd3 {[%clk 0:00:49]}  Bd6 {[%clk 0:00:57]} 48. Ke3 {[%clk 0:00:46]}  Be7 {[%clk 0:00:56]} 49. Kd3 {[%clk 0:00:45]}  Bh4 {[%clk 0:00:56]} 50. Be3 {[%clk 0:00:44]}  Be1 {[%clk 0:00:56]} 51. Bc5 {[%clk 0:00:36]}  Bg3 {[%clk 0:00:48]} 52. Be3 {[%clk 0:00:35]}  Kc6 {[%clk 0:00:45]} 53. Bd2 {[%clk 0:00:29]}  Bf2 {[%clk 0:00:44]} 54. Be3 {[%clk 0:00:27]}  Be1 {[%clk 0:00:43]} 55. Bd2 {[%clk 0:00:27]}  Bh4 {[%clk 0:00:43]} 56. Be3 {[%clk 0:00:27]}  Be7 {[%clk 0:00:43]} 57. Bd2 {[%clk 0:00:27]}  Bd8 {[%clk 0:00:42]} 58. Kd4 {[%clk 0:00:27]}  Bf6+ {[%clk 0:00:41]} 59. Kd3 {[%clk 0:00:27]}  Kd5 {[%clk 0:00:41]} 60. Be3 {[%clk 0:00:26]}  Be7 {[%clk 0:00:40]} 61. Bd2 {[%clk 0:00:27]}  Bd6 {[%clk 0:00:41]} 62. Ke3 {[%clk 0:00:26]} 1/2-1/2


[Site "https://www.chess.com"]

[Event "Titled Tuesday Blitz May 10 Late 2022"]
[White "Vega Gutierrez, Sabrina"]
[Black "Suleymanli, Aydin"]
[WhiteFideId "2219026"]
[BlackFideId "13413937"]
[WhiteElo "2286"]
[BlackElo "2481"]
[Result "0-1"]
[Round "01"]
[TimeControl "180+1"]
[Date "2022.05.10"]
[WhiteClock "0:00:48"]
[BlackClock "0:01:20"]

1. e4 {[%clk 0:02:58]}  c5 {[%clk 0:03:00]} 2. Nf3 {[%clk 0:02:58]}  Nc6 {[%clk 0:03:00]} 3. d4 {[%clk 0:02:59]}  cxd4 {[%clk 0:02:57]} 4. Nxd4 {[%clk 0:02:59]}  Nf6 {[%clk 0:02:56]} 5. Nc3 {[%clk 0:03:00]}  d6 {[%clk 0:02:50]} 6. Bg5 {[%clk 0:02:59]}  Bd7 {[%clk 0:02:49]} 7. Qd2 {[%clk 0:02:15]}  Rc8 {[%clk 0:02:43]} 8. O-O-O {[%clk 0:02:07]}  Nxd4 {[%clk 0:02:21]} 9. Qxd4 {[%clk 0:02:07]}  Qa5 {[%clk 0:02:22]} 10. Bxf6 {[%clk 0:02:00]}  gxf6 {[%clk 0:02:21]} 11. Kb1 {[%clk 0:02:01]}  Bg7 {[%clk 0:02:13]} 12. Be2 {[%clk 0:02:01]}  O-O {[%clk 0:02:12]} 13. Nd5 {[%clk 0:01:58]}  Rfe8 {[%clk 0:02:03]} 14. g4 {[%clk 0:01:50]}  f5 {[%clk 0:02:01]} 15. Qe3 {[%clk 0:01:32]}  fxe4 {[%clk 0:01:59]} 16. Qg5 {[%clk 0:01:27]}  Kh8 {[%clk 0:01:31]} 17. Qh4 {[%clk 0:00:52]}  Be6 {[%clk 0:01:25]} 18. c4 {[%clk 0:00:48]}  Bxd5 {[%clk 0:01:23]} 19. Rxd5 {[%clk 0:00:48]}  Qb4 {[%clk 0:01:20]} 0-1


[Site "https://www.chess.com"]

[Event "Titled Tuesday Blitz May 10 Late 2022"]
[White "Voiteanu, Gabriel"]
[Black "Godzwon, Iwo"]
[WhiteFideId "1208810"]
[BlackFideId "21802483"]
[WhiteElo "2001"]
[BlackElo "2201"]
[Result "1/2-1/2"]
[Round "01"]
[TimeControl "180+1"]
[Date "2022.05.11"]
[WhiteClock "0:00:01"]
[BlackClock "0:00:05"]

1. d4 {[%clk 0:02:59]}  Nf6 {[%clk 0:02:50]} 2. g3 {[%clk 0:02:59]}  g6 {[%clk 0:02:50]} 3. Bg2 {[%clk 0:03:00]}  Bg7 {[%clk 0:02:50]} 4. Nf3 {[%clk 0:02:59]}  O-O {[%clk 0:02:50]} 5. O-O {[%clk 0:03:00]}  d5 {[%clk 0:02:48]} 6. c4 {[%clk 0:02:59]}  dxc4 {[%clk 0:02:49]} 7. Na3 {[%clk 0:02:57]}  c3 {[%clk 0:02:45]} 8. bxc3 {[%clk 0:02:57]}  c5 {[%clk 0:02:46]} 9. Nc4 {[%clk 0:02:54]}  Nc6 {[%clk 0:02:43]} 10. Nfe5 {[%clk 0:02:48]}  Nxe5 {[%clk 0:02:43]} 11. Nxe5 {[%clk 0:02:48]}  Nd5 {[%clk 0:02:43]} 12. Bd2 {[%clk 0:02:41]}  Nb6 {[%clk 0:02:39]} 13. dxc5 {[%clk 0:02:28]}  Na4 {[%clk 0:02:34]} 14. Qxa4 {[%clk 0:02:12]}  Bxe5 {[%clk 0:02:33]} 15. Bh6 {[%clk 0:02:06]}  Bg7 {[%clk 0:02:30]} 16. Rfd1 {[%clk 0:02:01]}  Qc7 {[%clk 0:02:29]} 17. Bxg7 {[%clk 0:01:55]}  Kxg7 {[%clk 0:02:30]} 18. Qd4+ {[%clk 0:01:54]}  Kg8 {[%clk 0:02:21]} 19. Rab1 {[%clk 0:01:53]}  Rb8 {[%clk 0:02:08]} 20. c6 {[%clk 0:01:43]}  b6 {[%clk 0:01:59]} 21. h4 {[%clk 0:01:39]}  Bf5 {[%clk 0:01:59]} 22. e4 {[%clk 0:01:32]}  Bg4 {[%clk 0:01:57]} 23. Rd2 {[%clk 0:01:01]}  Rfd8 {[%clk 0:01:47]} 24. Qe3 {[%clk 0:01:01]}  Qxc6 {[%clk 0:01:39]} 25. e5 {[%clk 0:00:58]}  Qc7 {[%clk 0:01:37]} 26. Rd4 {[%clk 0:00:54]}  Be6 {[%clk 0:01:35]} 27. h5 {[%clk 0:00:54]}  Bxa2 {[%clk 0:01:28]} 28. Ra1 {[%clk 0:00:49]}  Be6 {[%clk 0:01:26]} 29. Bf3 {[%clk 0:00:44]}  a5 {[%clk 0:01:25]} 30. Kg2 {[%clk 0:00:44]}  Rxd4 {[%clk 0:00:09]} 31. cxd4 {[%clk 0:00:43]}  Rd8 {[%clk 0:00:09]} 32. Rh1 {[%clk 0:00:35]}  Bd5 {[%clk 0:00:09]} 33. Bxd5 {[%clk 0:00:20]}  Rxd5 {[%clk 0:00:10]} 34. e6 {[%clk 0:00:17]}  Qc6 {[%clk 0:00:05]} 35. Qf3 {[%clk 0:00:14]}  f6 {[%clk 0:00:03]} 36. hxg6 {[%clk 0:00:14]}  hxg6 {[%clk 0:00:04]} 37. Qe4 {[%clk 0:00:07]}  Kg7 {[%clk 0:00:04]} 38. Kg1 {[%clk 0:00:04]}  Qc1+ {[%clk 0:00:04]} 39. Kg2 {[%clk 0:00:04]}  Qc6 {[%clk 0:00:04]} 40. Kg1 {[%clk 0:00:04]}  Rd6 {[%clk 0:00:04]} 41. Qh4 {[%clk 0:00:03]}  Qc1+ {[%clk 0:00:04]} 42. Kg2 {[%clk 0:00:03]}  Qc6+ {[%clk 0:00:04]} 43. Kg1 {[%clk 0:00:02]}  Qc1+ {[%clk 0:00:04]} 44. Kg2 {[%clk 0:00:01]}  Qc6+ {[%clk 0:00:05]} 45. Kg1 {[%clk 0:00:01]} 1/2-1/2


[Site "https://www.chess.com"]

[Event "Titled Tuesday Blitz May 10 Late 2022"]
[White "Vujic, Mihailo"]
[Black "Babazada, Khazar"]
[WhiteFideId "918873"]
[BlackFideId "13413554"]
[WhiteElo "2256"]
[BlackElo "2406"]
[Result "1-0"]
[Round "01"]
[TimeControl "180+1"]
[Date "2022.05.10"]
[WhiteClock "0:00:25"]
[BlackClock "0:00:21"]

1. e4 {[%clk 0:02:57]}  g6 {[%clk 0:02:54]} 2. d4 {[%clk 0:02:55]}  Bg7 {[%clk 0:02:55]} 3. Nc3 {[%clk 0:02:55]}  d6 {[%clk 0:02:55]} 4. Bg5 {[%clk 0:02:54]}  h6 {[%clk 0:02:55]} 5. Bh4 {[%clk 0:02:53]}  a6 {[%clk 0:02:55]} 6. Nf3 {[%clk 0:02:52]}  b5 {[%clk 0:02:55]} 7. Bd3 {[%clk 0:02:51]}  Bb7 {[%clk 0:02:54]} 8. Qe2 {[%clk 0:02:52]}  Nc6 {[%clk 0:02:47]} 9. Qe3 {[%clk 0:02:39]}  Nf6 {[%clk 0:02:43]} 10. h3 {[%clk 0:02:31]}  O-O {[%clk 0:02:40]} 11. O-O-O {[%clk 0:02:20]}  b4 {[%clk 0:02:37]} 12. Nd5 {[%clk 0:02:16]}  Qd7 {[%clk 0:02:23]} 13. Bxf6 {[%clk 0:02:09]}  exf6 {[%clk 0:02:23]} 14. Kb1 {[%clk 0:01:56]}  a5 {[%clk 0:02:07]} 15. Qxh6 {[%clk 0:01:55]}  Bxh6 {[%clk 0:01:51]} 16. Nxf6+ {[%clk 0:01:54]}  Kg7 {[%clk 0:01:52]} 17. Nxd7 {[%clk 0:01:52]}  Rfd8 {[%clk 0:01:53]} 18. d5 {[%clk 0:01:45]}  Ne7 {[%clk 0:01:49]} 19. Bb5 {[%clk 0:01:35]}  Ba6 {[%clk 0:01:44]} 20. Bc6 {[%clk 0:01:31]}  Nxc6 {[%clk 0:01:40]} 21. dxc6 {[%clk 0:01:31]}  a4 {[%clk 0:01:03]} 22. e5 {[%clk 0:01:29]}  dxe5 {[%clk 0:00:53]} 23. Ndxe5 {[%clk 0:01:22]}  b3 {[%clk 0:00:49]} 24. Rd7 {[%clk 0:01:05]}  Rxd7 {[%clk 0:00:42]} 25. cxd7 {[%clk 0:01:03]}  Bb5 {[%clk 0:00:42]} 26. c4 {[%clk 0:00:56]}  Bxd7 {[%clk 0:00:35]} 27. Nxd7 {[%clk 0:00:55]}  Rd8 {[%clk 0:00:36]} 28. Nc5 {[%clk 0:00:50]}  bxa2+ {[%clk 0:00:24]} 29. Kxa2 {[%clk 0:00:51]}  Ra8 {[%clk 0:00:25]} 30. Rd1 {[%clk 0:00:48]}  Kg8 {[%clk 0:00:25]} 31. Rd7 {[%clk 0:00:46]}  Bf8 {[%clk 0:00:25]} 32. Ne4 {[%clk 0:00:42]}  a3 {[%clk 0:00:25]} 33. b3 {[%clk 0:00:41]}  Bg7 {[%clk 0:00:23]} 34. Rxc7 {[%clk 0:00:34]}  Re8 {[%clk 0:00:23]} 35. Ned2 {[%clk 0:00:32]}  Bf8 {[%clk 0:00:20]} 36. c5 {[%clk 0:00:28]}  Kg7 {[%clk 0:00:20]} 37. Kxa3 {[%clk 0:00:27]}  Kf6 {[%clk 0:00:21]} 38. b4 {[%clk 0:00:27]}  Ke6 {[%clk 0:00:20]} 39. Kb3 {[%clk 0:00:26]}  Kd5 {[%clk 0:00:21]} 40. Rxf7 {[%clk 0:00:25]} 1-0


[Site "https://www.chess.com"]